bitfinex/quotes_BTCUSD_20230106
["timestamp","ask_amount","ask_price","bid_price","bid_amount"]
[1672983328145,0.46517649,16822.0,16821.0,0.12569689]
[1672983328650,0.01947718,16822.0,16821.0,0.12569689]
[1672983329412,1.11425053,16822.0,16821.0,0.12569689]
[1672983329663,0.66873509,16822.0,16821.0,0.12569689]
[1672983329929,1.28037209,16822.0,16821.0,0.12569689]
[1672983330185,1.52136467,16822.0,16821.0,0.12569689]
[1672983330447,0.90972767,16822.0,16821.0,0.12569689]
[1672983333007,0.82948767,16822.0,16821.0,0.12569689]
[1672983333241,1.36459734,16822.0,16821.0,0.12569689]
[1672983333476,0.58849509,16822.0,16821.0,0.12569689]
[1672983333724,1.20013209,16822.0,16821.0,0.12569689]
[1672983334235,0.58849509,16822.0,16821.0,0.12569689]
[1672983334478,1.18295409,16822.0,16821.0,0.12569689]
[1672983334729,1.71806376,16822.0,16821.0,0.12569689]
[1672983335018,2.50150714,16822.0,16821.0,0.12569689]
[1672983335532,1.96639747,16822.0,16821.0,0.12569689]
[1672983339172,1.37193847,16822.0,16821.0,0.12569689]
[1672983339953,0.76030147,16822.0,16821.0,0.12569689]
[1672983342071,1.35476047,16822.0,16821.0,0.12569689]
[1672983342321,0.76030147,16822.0,16821.0,0.12569689]
[1672983344597,1.20513541,16822.0,16821.0,0.12569689]
[1672983344847,0.76030147,16822.0,16821.0,0.12569689]
[1672983345344,1.20510741,16822.0,16821.0,0.12569689]
[1672983345605,0.76030147,16822.0,16821.0,0.12569689]
[1672983346316,0.76030147,16822.0,16821.0,0.12562304]
[1672983346555,1.20509158,16822.0,16821.0,0.12562304]
[1672983346812,1.0332852,16822.0,16821.0,0.12562304]
[1672983347072,1.20013209,16822.0,16821.0,0.12562304]
[1672983348119,0.58849509,16822.0,16821.0,0.12562304]
[1672983348380,1.03329416,16822.0,16821.0,0.12562304]
[1672983349119,1.62775316,16822.0,16821.0,0.12562304]
[1672983349386,1.84403944,16822.0,16821.0,0.12562304]
[1672983349643,2.01087737,16822.0,16821.0,0.12562304]
[1672983350702,2.45569616,16822.0,16821.0,0.12562304]
[1672983351355,2.01087737,16822.0,16821.0,0.12562304]
[1672983353699,1.39924037,16822.0,16821.0,0.12562304]
[1672983361221,0.58849509,16822.0,16821.0,0.12562304]
[1672983361464,1.0336951,16822.0,16821.0,0.12562304]
[1672983361956,0.58849509,16822.0,16821.0,0.12562304]
[1672983365144,1.03377105,16822.0,16821.0,0.12562304]
[1672983365410,0.58849509,16822.0,16821.0,0.12562304]
[1672983369130,0.58849509,16822.0,16821.0,0.12552555]
[1672983373692,0.58849509,16822.0,16821.0,0.11574667]
[1672983380620,0.57859209,16822.0,16821.0,0.11574667]
[1672983381391,0.58648013,16822.0,16821.0,0.11574667]
[1672983387424,0.58648013,16822.0,16821.0,0.66007083]
[1672983390232,1.03196884,16822.0,16821.0,0.66007083]
[1672983390493,1.03196884,16822.0,16821.0,0.11574667]
[1672983393227,0.58648013,16822.0,16821.0,0.11574667]
[1672983395307,0.58648013,16822.0,16821.0,0.09893679]
[1672983402589,0.58648013,16822.0,16821.0,0.63810214]
[1672983404548,0.58648013,16822.0,16821.0,0.62000214]
[1672983405874,0.58648013,16822.0,16821.0,1.1643263]
[1672983406632,0.58648013,16822.0,16821.0,0.62000214]
[1672983407666,0.58648013,16822.0,16821.0,1.1643263]
[1672983411166,0.01746222,16822.0,16821.0,1.1643263]
[1672983411431,0.46292581,16822.0,16821.0,1.1643263]
[1672983424013,0.46292581,16822.0,16821.0,0.62000214]
[1672983424492,0.01746222,16822.0,16821.0,0.62000214]
[1672983424746,0.46284124,16822.0,16821.0,0.61991718]
[1672983425039,0.46284124,16822.0,16821.0,1.16424134]
[1672983442768,0.01746222,16822.0,16821.0,1.16424134]
[1672983444010,0.01746222,16822.0,16821.0,0.61991718]
[1672983444529,0.01746222,16822.0,16821.0,0.6198401]
[1672983446563,0.01746222,16822.0,16821.0,1.66416426]
[1672983446823,0.46288742,16822.0,16821.0,1.16416426]
[1672983448326,0.01746222,16822.0,16821.0,1.16416426]
[1672983450655,0.4629021,16822.0,16821.0,1.16416426]
[1672983459650,0.46282384,16822.0,16821.0,1.16416426]
[1672983468273,0.46282384,16822.0,16821.0,1.75865826]
[1672983468558,0.44472384,16822.0,16821.0,1.75865826]
[1672983475753,1.13965072,16823.0,16821.0,1.75865826]
[1672983476012,0.44545077,16822.0,16821.0,1.75865826]
[1672983476288,0.44545239,16822.0,16821.0,1.75865826]
[1672983476540,0.46086515,16822.0,16821.0,1.67798351]
[1672983476805,0.46086515,16822.0,16821.0,1.76498351]
[1672983477029,0.46086515,16822.0,16821.0,1.67798351]
[1672983477284,0.46986515,16822.0,16821.0,1.76498351]
[1672983480445,0.46986515,16822.0,16821.0,1.17048951]
[1672983480996,0.46986515,16822.0,16821.0,1.76498351]
[1672983492184,0.46986515,16822.0,16821.0,1.76490196]
[1672983494941,0.46997829,16822.0,16821.0,1.76490196]
[1672983496873,0.02441276,16822.0,16821.0,1.76490196]
[1672983497125,0.4700232,16822.0,16821.0,1.76490196]
[1672983497627,0.02441276,16822.0,16821.0,1.76490196]
[1672983498683,0.02441276,16822.0,16821.0,1.17040796]
[1672983501499,0.47001736,16822.0,16821.0,1.17040796]
[1672983502288,0.02441276,16822.0,16821.0,1.17040796]
[1672983507249,1.09387802,16822.0,16821.0,2.35939596]
[1672983507534,0.64821655,16822.0,16821.0,2.35939596]
[1672983507809,1.0938146,16822.0,16821.0,2.35939596]
[1672983508058,0.64821608,16822.0,16821.0,2.35939596]
[1672983511465,0.64821608,16822.0,16821.0,1.8150718]
[1672983513497,0.82636358,16822.0,16821.0,1.8150718]
[1672983514561,0.64821608,16822.0,16821.0,1.8150718]
[1672983515330,0.82635764,16822.0,16821.0,1.8150718]
[1672983516089,0.46986236,16822.0,16821.0,1.8150718]
[1672983517137,0.82635764,16822.0,16821.0,1.8150718]
[1672983517658,0.46986236,16822.0,16821.0,1.8150718]
[1672983517915,0.82635764,16822.0,16821.0,1.8150718]
[1672983518196,0.64821608,16822.0,16821.0,1.8150718]
[1672983518445,0.82633284,16822.0,16821.0,1.8150718]
[1672983519758,0.46983756,16822.0,16821.0,1.8150718]
[1672983520022,0.64821608,16822.0,16821.0,1.8150718]
[1672983521429,0.82633216,16822.0,16821.0,1.8150718]
[1672983521675,0.64821608,16822.0,16821.0,1.8150718]
[1672983521932,0.82633114,16822.0,16821.0,1.8150718]
[1672983522967,0.46983586,16822.0,16821.0,1.8150718]
[1672983527784,0.64821608,16822.0,16821.0,1.8150718]
[1672983528035,0.82632645,16822.0,16821.0,2.35939596]
[1672983528548,0.46983117,16822.0,16821.0,2.35939596]
[1672983529853,0.82632645,16822.0,16821.0,2.35939596]
[1672983532211,0.64821608,16822.0,16821.0,2.35939596]
[1672983532642,0.46983307,16822.0,16821.0,2.35939596]
[1672983532893,0.20252503,16822.0,16821.0,2.35939596]
[1672983537625,0.18711227,16822.0,16821.0,2.35939596]
[1672983540918,0.009,16822.0,16821.0,2.35939596]
[1672983541193,0.009,16822.0,16821.0,2.53767217]
[1672983541453,0.009,16822.0,16821.0,2.35939596]
[1672983545639,0.009,16822.0,16821.0,2.53767217]
[1672983546619,0.009,16822.0,16821.0,2.35939596]
[1672983546869,0.009,16822.0,16821.0,2.53767217]
[1672983548121,0.009,16822.0,16821.0,2.35939596]
[1672983556995,0.18711227,16822.0,16821.0,2.35939596]
[1672983557825,0.009,16822.0,16821.0,2.35939596]
[1672983559466,0.18711227,16822.0,16821.0,2.35939596]
[1672983566078,0.009,16822.0,16821.0,2.35939596]
[1672983569614,0.009,16822.0,16821.0,2.53767217]
[1672983569615,0.18711227,16822.0,16821.0,2.53767217]
[1672983569923,0.18711227,16822.0,16821.0,2.35939596]
[1672983571263,0.18711227,16822.0,16821.0,2.53767217]
[1672983571527,0.18711227,16822.0,16821.0,2.35939596]
[1672983571784,0.18711227,16822.0,16821.0,2.53767217]
[1672983576501,0.18711227,16822.0,16821.0,2.35939596]
[1672983577797,0.45442031,16822.0,16821.0,2.35939596]
[1672983580834,0.45442031,16822.0,16821.0,2.53767217]
[1672983581086,0.18711227,16822.0,16821.0,2.53767217]
[1672983589153,0.45442031,16822.0,16821.0,2.35939596]
[1672983590177,0.45442031,16822.0,16821.0,2.35930868]
[1672983597613,0.46793507,16822.0,16821.0,2.35930868]
[1672983603765,0.4586409,16822.0,16821.0,2.35930868]
[1672983604022,1.0702779,16822.0,16821.0,2.35930868]
[1672983604530,0.4586409,16822.0,16821.0,2.35930868]
[1672983618186,0.19133286,16822.0,16821.0,2.35930868]
[1672983619508,0.4586409,16822.0,16821.0,2.35930868]
[1672983630578,0.81513618,16822.0,16821.0,2.35930868]
[1672983630935,0.81513618,16822.0,16821.0,2.35921937]
[1672983631463,0.63731808,16822.0,16821.0,2.35921937]
[1672983632794,0.62380332,16822.0,16821.0,2.35921937]
[1672983633242,0.80201969,16822.0,16821.0,2.35921937]
[1672983633503,0.63817178,16822.0,16821.0,2.35921937]
[1672983635260,0.81638172,16822.0,16821.0,2.35921937]
[1672983635498,0.63817178,16822.0,16821.0,2.35921937]
[1672983636487,0.81637993,16822.0,16821.0,2.35921937]
[1672983637316,0.63817178,16822.0,16821.0,2.35921937]
[1672983637572,0.81637811,16822.0,16821.0,2.35921937]
[1672983637837,0.63817178,16822.0,16821.0,2.35921937]
[1672983638110,0.81637822,16822.0,16821.0,2.35921937]
[1672983639832,0.45988294,16822.0,16821.0,2.35921937]
[1672983640354,0.81637822,16822.0,16821.0,2.35921937]
[1672983640701,0.63817178,16822.0,16821.0,2.35921937]
[1672983641975,0.81637536,16822.0,16821.0,2.35921937]
[1672983642470,0.81637881,16822.0,16821.0,2.35921937]
[1672983643029,0.81637671,16822.0,16821.0,2.35921937]
[1672983643446,0.45988143,16822.0,16821.0,2.35921937]
[1672983644637,0.81637671,16822.0,16821.0,2.35921937]
[1672983644897,0.45988143,16822.0,16821.0,2.35921937]
[1672983645474,0.81637671,16822.0,16821.0,2.35921937]
[1672983646275,0.63817178,16822.0,16821.0,2.35921937]
[1672983647064,0.81636663,16822.0,16821.0,2.35921937]
[1672983647292,0.63817178,16822.0,16821.0,2.35921937]
[1672983647777,0.81638072,16822.0,16821.0,2.35921937]
[1672983648956,0.45988544,16822.0,16821.0,2.35921937]
[1672983649227,0.81638072,16822.0,16821.0,2.35921937]
[1672983649726,0.45988544,16822.0,16821.0,2.35921937]
[1672983649916,0.63817178,16822.0,16821.0,2.35921937]
[1672983650866,0.81640667,16822.0,16821.0,2.35921937]
[1672983651150,0.63817178,16822.0,16821.0,2.35921937]
[1672983653021,0.81640658,16822.0,16821.0,2.35921937]
[1672983654290,0.63817178,16822.0,16821.0,2.35921937]
[1672983654513,0.45991165,16822.0,16821.0,2.35921937]
[1672983654769,0.81640693,16822.0,16821.0,2.35921937]
[1672983655955,0.45991165,16822.0,16821.0,2.35921937]
[1672983658433,0.63817178,16822.0,16821.0,2.35921937]
[1672983661959,0.4599554,16822.0,16821.0,2.35921937]
[1672983666470,0.4599554,16822.0,16821.0,2.53749558]
[1672983667228,0.4599554,16822.0,16821.0,2.35921937]
[1672983668002,0.4599554,16822.0,16821.0,2.53749558]
[1672983668478,0.4599554,16822.0,16821.0,2.35921937]
[1672983668725,0.4599554,16822.0,16821.0,2.53749558]
[1672983669498,0.4599554,16822.0,16821.0,2.35921937]
[1672983669739,0.4599554,16822.0,16821.0,2.53749558]
[1672983669994,0.4599554,16822.0,16821.0,2.35921937]
[1672983670908,0.88296784,16822.0,16821.0,0.087]
[1672983671164,2.32111386,16822.0,16821.0,0.087]
[1672983671470,1.96461858,16822.0,16821.0,0.08688314]
[1672983671734,1.35298158,16822.0,16821.0,0.08688314]
[1672983671993,0.90738306,16822.0,16821.0,0.08688314]
[1672983673307,1.35272957,16822.0,16821.0,0.08688314]
[1672983680613,1.70871994,16822.0,16821.0,0.08688314]
[1672983681119,1.70861413,16822.0,16821.0,0.08688314]
[1672983682984,1.52327958,16822.0,16821.0,0.08688314]
[1672983689571,1.34488402,16822.0,16821.0,0.08688314]
[1672983691222,1.52327958,16822.0,16821.0,0.08688314]
[1672983691488,1.79023193,16822.0,16821.0,0.08688314]
[1672983692033,1.34488542,16822.0,16821.0,0.08688314]
[1672983692290,1.79023193,16822.0,16821.0,0.08688314]
[1672983692555,1.34488542,16822.0,16821.0,0.08688314]
[1672983693915,1.79023193,16822.0,16821.0,0.08688314]
[1672983694142,1.34488542,16822.0,16821.0,0.08688314]
[1672983694654,1.79023193,16822.0,16821.0,0.08688314]
[1672983695007,1.34488542,16822.0,16821.0,0.08688314]
[1672983696502,1.79023193,16822.0,16821.0,0.08688314]
[1672983697237,1.52327958,16822.0,16821.0,0.08688314]
[1672983698029,1.79022492,16822.0,16821.0,0.08688314]
[1672983698258,1.52327958,16822.0,16821.0,0.08688314]
[1672983698567,1.79022116,16822.0,16821.0,0.08688314]
[1672983698808,1.52327958,16822.0,16821.0,0.08688314]
[1672983702174,1.67560754,16822.0,16821.0,0.08688314]
[1672983702682,1.67560754,16822.0,16821.0,0.08678483]
[1672983708534,1.31961717,16822.0,16821.0,0.08678483]
[1672983718737,0.87427066,16822.0,16821.0,0.08678483]
[1672983719698,1.31983642,16822.0,16821.0,0.08678483]
[1672983720456,0.87427066,16822.0,16821.0,0.08678483]
[1672983724148,0.7219427,16822.0,16821.0,0.08678483]
[1672983726911,0.7219427,16822.0,16821.0,0.08671293]
[1672983728227,1.25705237,16822.0,16821.0,0.08671293]
[1672983729004,0.7219427,16822.0,16821.0,0.08671293]
[1672983729677,1.25705237,16822.0,16821.0,0.08671293]
[1672983729939,1.38275761,16822.0,16821.0,0.08671293]
[1672983730458,1.99439461,16822.0,16821.0,0.08671293]
[1672983730963,1.45928494,16822.0,16821.0,0.08671293]
[1672983731219,1.99439461,16822.0,16821.0,0.08671293]
[1672983731470,1.45928494,16822.0,16821.0,0.08671293]
[1672983737903,0.84764794,16822.0,16821.0,0.08671293]
[1672983738377,1.45928494,16822.0,16821.0,0.08671293]
[1672983745231,0.84764794,16822.0,16821.0,0.08671293]
[1672983748257,1.38275761,16822.0,16821.0,0.08671293]
[1672983749031,1.38275761,16822.0,16821.0,0.08663459]
[1672983751014,1.97721661,16822.0,16821.0,0.08663459]
[1672983751269,2.58885361,16822.0,16821.0,0.08663459]
[1672983755014,1.97721661,16822.0,16821.0,0.08663459]
[1672983755768,1.99439461,16822.0,16821.0,0.08663459]
[1672983756687,1.38275761,16822.0,16821.0,0.08663459]
[1672983768208,2.58885361,16822.0,16821.0,0.08663459]
[1672983770676,2.58885361,16822.0,16821.0,0.08654021]
[1672983774153,3.18331261,16822.0,16821.0,0.08654021]
[1672983778622,3.18320333,16822.0,16821.0,0.08654021]
[1672983779506,2.64809366,16822.0,16821.0,0.08654021]
[1672983780076,2.64314977,16822.0,16821.0,0.08654021]
[1672983780609,3.18434522,16822.0,16821.0,0.08654021]
[1672983782266,2.6500618,16822.0,16821.0,0.08654021]
[1672983785268,2.6585618,16822.0,16821.0,0.08654021]
[1672983788419,3.25973725,16822.0,16821.0,0.08654021]
[1672983788661,2.5520572,16822.0,16821.0,0.08654021]
[1672983788908,3.24553269,16822.0,16821.0,0.08654021]
[1672983789877,1.95088175,16822.0,16821.0,0.08654021]
[1672983790125,2.28652109,16822.0,16821.0,0.08654021]
[1672983791533,2.28652109,16822.0,16821.0,0.07788619]
[1672983791794,2.28652109,16822.0,16820.0,0.03368887]
[1672983792041,2.12136886,16822.0,16821.0,0.02]
[1672983792337,0.5,16821.0,16820.0,0.03368887]
[1672983792600,2.609125,16821.0,16820.0,0.03368887]
[1672983792853,2.64476434,16821.0,16820.0,0.03368887]
[1672983793109,3.65372264,16821.0,16820.0,0.03368887]
[1672983793682,3.72476177,16821.0,16820.0,0.03968887]
[1672983799659,4.08946722,16821.0,16820.0,0.03968887]
[1672983799936,3.48612961,16821.0,16820.0,0.03968887]
[1672983800172,2.82425438,16821.0,16820.0,0.03968887]
[1672983800685,3.41987769,16821.0,16820.0,0.03968887]
[1672983800934,2.88562222,16821.0,16820.0,0.03968887]
[1672983801151,3.12425438,16821.0,16820.0,0.03968887]
[1672983801691,3.18562222,16821.0,16820.0,0.03968887]
[1672983802452,4.33045377,16821.0,16820.0,0.03968887]
[1672983802709,3.72994638,16821.0,16820.0,0.03571999]
[1672983802971,3.90625643,16821.0,16815.0,0.57050953]
[1672983803246,0.63060222,16816.0,16806.0,0.44542394]
[1672983803537,0.80255872,16811.0,16805.0,0.1827391]
[1672983803772,1.4895369,16810.0,16805.0,0.00461289]
[1672983804017,0.15583102,16808.0,16805.0,0.00461289]
[1672983804273,1.18827,16807.0,16805.0,0.00461289]
[1672983804532,1.18827,16807.0,16805.0,0.51701489]
[1672983804533,0.89459311,16807.0,16805.0,0.51701489]
[1672983804848,0.611637,16806.0,16805.0,0.10385289]
[1672983805081,1.13155918,16809.0,16807.0,0.5]
[1672983805334,0.51117387,16809.0,16807.0,0.5]
[1672983805604,1.14127564,16810.0,16806.0,8.06306073]
[1672983805862,0.51760913,16809.0,16806.0,8.06306073]
[1672983806130,0.00015,16810.0,16807.0,0.00060132]
[1672983806386,0.008,16809.0,16807.0,0.01860132]
[1672983806633,0.61857355,16810.0,16807.0,0.00060132]
[1672983806890,0.00015,16810.0,16807.0,0.59558332]
[1672983807156,0.00015,16810.0,16809.0,0.5]
[1672983807691,0.60256934,16811.0,16809.0,0.5]
[1672983808453,0.011,16810.0,16809.0,1.158912]
[1672983808756,0.71175404,16812.0,16809.0,1.094912]
[1672983808968,0.012,16811.0,16809.0,1.157912]
[1672983809233,0.78292944,16812.0,16809.0,1.094912]
[1672983809495,0.011,16810.0,16809.0,1.158912]
[1672983809767,0.00015,16812.0,16809.0,1.094912]
[1672983810096,0.012,16811.0,16810.0,0.59298735]
[1672983811092,0.00015,16812.0,16811.0,0.5]
[1672983811356,0.5304609,16813.0,16811.0,0.5]
[1672983811651,0.63779599,16813.0,16811.0,0.5]
[1672983812171,0.10733509,16813.0,16811.0,0.5]
[1672983812435,0.10733509,16813.0,16812.0,0.55720763]
[1672983812714,0.056,16813.0,16812.0,0.55720763]
[1672983812983,0.65659233,16814.0,16812.0,0.55720763]
[1672983813252,0.65674233,16814.0,16812.0,0.55720763]
[1672983813749,0.118,16813.0,16812.0,0.55720763]
[1672983813990,0.65674233,16814.0,16812.0,0.55720763]
[1672983814256,0.77668595,16814.0,16812.0,0.57720763]
[1672983814531,0.77668595,16814.0,16812.0,0.55720763]
[1672983814771,0.012,16813.0,16812.0,0.62020763]
[1672983815033,0.77668595,16814.0,16812.0,0.55720763]
[1672983815329,0.98617151,16813.0,16812.0,0.063]
[1672983815608,3.6699742,16813.0,16808.0,0.57624627]
[1672983815867,2.15150855,16812.0,16807.0,0.00015]
[1672983816124,2.20019666,16811.0,16807.0,0.52462822]
[1672983816390,2.20019666,16811.0,16809.0,0.69276595]
[1672983816391,0.620165,16810.0,16809.0,0.69276595]
[1672983816886,0.0085,16810.0,16807.0,1.190122]
[1672983816887,0.0896686,16813.0,16810.0,0.625522]
[1672983817150,0.0896686,16813.0,16810.0,0.56114137]
[1672983817151,0.00015,16811.0,16810.0,0.56114137]
[1672983818179,0.00415,16811.0,16810.0,0.58514137]
[1672983818935,0.004,16811.0,16810.0,8.08514137]
[1672983819492,0.004,16811.0,16810.0,7.524]
[1672983819751,0.004,16811.0,16810.0,8.118883]
[1672983820007,0.004,16811.0,16810.0,0.66598264]
[1672983820572,0.57644691,16813.0,16811.0,0.4]
[1672983821103,0.57644691,16813.0,16810.0,8.22198264]
[1672983821368,0.05779469,16812.0,16810.0,8.22198264]
[1672983821624,0.05779469,16812.0,16810.0,8.14198264]
[1672983821911,0.05779469,16812.0,16811.0,0.009]
[1672983822455,0.00015,16812.0,16811.0,0.009]
[1672983822714,0.57744691,16813.0,16811.0,0.009]
[1672983822967,0.57644691,16813.0,16810.0,8.14198264]
[1672983823257,0.58444691,16813.0,16810.0,8.22198264]
[1672983823525,0.57644691,16813.0,16810.0,8.14198264]
[1672983823788,0.008,16812.0,16811.0,0.08]
[1672983824043,0.57644691,16813.0,16811.0,0.53350946]
[1672983824297,0.69813144,16813.0,16811.0,0.53350946]
[1672983824871,0.69713144,16813.0,16811.0,0.53350946]
[1672983825143,0.64956002,16812.0,16810.0,7.5]
[1672983825425,0.64956002,16812.0,16810.0,8.05762451]
[1672983826008,0.64956002,16812.0,16811.0,0.007]
[1672983826272,0.64956002,16812.0,16810.0,0.55762451]
[1672983826528,0.78108448,16812.0,16810.0,1.13762451]
[1672983827030,0.78108448,16812.0,16810.0,0.63762451]
[1672983827896,0.78108448,16812.0,16811.0,7.5]
[1672983828148,0.65756002,16812.0,16811.0,7.5]
[1672983828969,0.64956002,16812.0,16811.0,7.5]
[1672983829213,0.65056002,16812.0,16811.0,7.509]
[1672983831589,0.001,16812.0,16811.0,7.509]
[1672983832118,0.001,16812.0,16811.0,0.603848]
[1672983832646,0.001,16812.0,16811.0,8.603848]
[1672983833683,0.001,16812.0,16811.0,1.103848]
[1672983834216,0.001,16812.0,16811.0,8.603848]
[1672983835336,0.001,16812.0,16811.0,1.103848]
[1672983835855,0.001,16812.0,16811.0,2.20849027]
[1672983836849,0.00015,16813.0,16811.0,2.19949027]
[1672983836850,0.00015,16813.0,16812.0,0.5]
[1672983837970,1.13675257,16814.0,16812.0,0.5]
[1672983838493,1.38966795,16814.0,16812.0,0.5]
[1672983838749,0.001,16813.0,16812.0,1.06695553]
[1672983839005,1.38966795,16814.0,16812.0,1.05795553]
[1672983839320,1.80918539,16814.0,16812.0,1.06495553]
[1672983839584,0.17684739,16813.0,16812.0,1.06495553]
[1672983840104,0.17684739,16813.0,16812.0,1.65976853]
[1672983840375,0.17684739,16813.0,16812.0,1.65276853]
[1672983840642,0.44271526,16813.0,16812.0,1.15276853]
[1672983840903,0.6171338,16813.0,16812.0,0.5578831]
[1672983841420,0.79580385,16813.0,16812.0,0.5668831]
[1672983842246,0.79866424,16813.0,16812.0,0.5668831]
[1672983842508,1.41032924,16813.0,16812.0,0.5668831]
[1672983842766,0.79866424,16813.0,16812.0,0.5668831]
[1672983843014,0.62220062,16813.0,16812.0,0.5668831]
[1672983843592,1.06534742,16813.0,16812.0,0.5668831]
[1672983843858,0.79866424,16813.0,16812.0,0.5668831]
[1672983845428,0.4441468,16813.0,16812.0,0.5668831]
[1672983845695,1.28296676,16813.0,16812.0,0.009]
[1672983845974,2.34036023,16813.0,16812.0,0.009]
[1672983846505,1.72869523,16813.0,16812.0,0.009]
[1672983848037,1.13391823,16813.0,16812.0,0.009]
[1672983848296,2.13925664,16813.0,16812.0,0.009]
[1672983848561,2.13925664,16813.0,16812.0,0.10824]
[1672983848562,1.13391823,16813.0,16812.0,0.10824]
[1672983848834,0.60214207,16813.0,16812.0,0.009]
[1672983849354,0.001,16813.0,16812.0,0.67602744]
[1672983849609,0.44588596,16813.0,16812.0,0.67602744]
[1672983849914,0.44588632,16813.0,16812.0,0.67602744]
[1672983850689,0.60638433,16813.0,16812.0,0.67602744]
[1672983851237,0.16149801,16813.0,16812.0,0.67602744]
[1672983851499,0.60639588,16813.0,16812.0,0.67602744]
[1672983853092,0.16149801,16813.0,16812.0,0.67602744]
[1672983853355,0.16149801,16813.0,16812.0,0.009]
[1672983854698,0.69327417,16813.0,16812.0,0.009]
[1672983854952,1.28805117,16813.0,16812.0,0.009]
[1672983856201,1.12755316,16813.0,16812.0,0.009]
[1672983856524,0.53277616,16813.0,16812.0,0.009]
[1672983857006,0.001,16813.0,16812.0,0.009]
[1672983857525,0.001,16813.0,16812.0,0.10824]
[1672983857848,0.44596488,16813.0,16812.0,0.009]
[1672983858053,0.80195046,16813.0,16812.0,1.24085761]
[1672983858317,1.06894201,16813.0,16812.0,1.83567061]
[1672983858571,0.62397713,16813.0,16812.0,1.83567061]
[1672983860667,0.62397713,16813.0,16812.0,0.64604461]
[1672983860668,1.14653755,16813.0,16812.0,0.64604461]
[1672983860923,0.55287408,16813.0,16812.0,0.64604461]
[1672983861716,0.44596488,16813.0,16812.0,0.64604461]
[1672983862237,0.8018995,16813.0,16812.0,0.64604461]
[1672983863573,0.8018995,16813.0,16812.0,2.80997935]
[1672983863574,0.44592206,16813.0,16812.0,2.80997935]
[1672983863838,0.001,16813.0,16812.0,2.80997935]
[1672983864086,0.001,16813.0,16812.0,3.21828681]
[1672983864867,0.44492206,16814.0,16812.0,3.20928681]
[1672983865124,0.17797235,16814.0,16813.0,0.5]
[1672983865394,0.17797235,16814.0,16813.0,2.34115846]
[1672983865666,0.62288433,16814.0,16813.0,0.65160446]
[1672983865914,9.416e-05,16813.0,16812.0,7.5]
[1672983866180,0.62269864,16813.0,16811.0,1.90356738]
[1672983866449,0.17788552,16812.0,16811.0,1.90356738]
[1672983866703,0.17788552,16812.0,16811.0,8.80874038]
[1672983866704,0.6823939,16812.0,16811.0,8.80874038]
[1672983867001,0.44471601,16812.0,16811.0,8.80874038]
[1672983867268,0.44471601,16812.0,16811.0,8.21391738]
[1672983867536,0.44471601,16812.0,16811.0,8.30191738]
[1672983867799,0.44471601,16812.0,16811.0,8.80876538]
[1672983868050,0.17788552,16812.0,16811.0,9.40361338]
[1672983869134,0.18688552,16812.0,16811.0,9.49261338]
[1672983869671,0.45371601,16812.0,16811.0,9.49261338]
[1672983870400,0.18688552,16812.0,16811.0,9.49261338]
[1672983870653,0.45371601,16812.0,16811.0,9.49261338]
[1672983870955,0.45371601,16812.0,16811.0,9.49249432]
[1672983872171,0.18688552,16812.0,16811.0,9.49249432]
[1672983874275,0.45371601,16812.0,16811.0,9.49249432]
[1672983875072,0.45371601,16812.0,16811.0,8.89764632]
[1672983875335,0.63160448,16812.0,16811.0,8.89764632]
[1672983875842,0.80951576,16812.0,16811.0,8.89764632]
[1672983876124,0.63160448,16812.0,16811.0,8.30279832]
[1672983876879,0.63160448,16812.0,16811.0,8.89764632]
[1672983877135,0.80952386,16812.0,16811.0,8.89764632]
[1672983877428,0.45374987,16812.0,16811.0,8.89764632]
[1672983877691,0.45374987,16812.0,16811.0,9.49249432]
[1672983880216,0.80952386,16812.0,16811.0,9.49249432]
[1672983880992,0.45374987,16812.0,16811.0,9.49249432]
[1672983883061,0.45367931,16812.0,16811.0,9.49249432]
[1672983888882,0.45367931,16812.0,16811.0,8.89764632]
[1672983890709,0.45367931,16812.0,16811.0,9.49249432]
[1672983892465,0.18684882,16812.0,16811.0,10.04344472]
[1672983893253,0.18684882,16812.0,16811.0,9.49249432]
[1672983894257,0.18684882,16812.0,16811.0,10.04344472]
[1672983895293,0.00892944,16812.0,16811.0,10.04344472]
[1672983896307,0.18684882,16812.0,16811.0,10.04344472]
[1672983898151,0.18684882,16812.0,16811.0,9.49249432]
[1672983898891,0.18684882,16812.0,16811.0,10.04344472]
[1672983899976,0.18613287,16812.0,16811.0,10.04344472]
[1672983901003,0.00821349,16812.0,16811.0,10.08637145]
[1672983901262,0.18613287,16812.0,16811.0,9.49249432]
[1672983901515,0.45296336,16812.0,16811.0,9.49249432]
[1672983901869,0.45296336,16812.0,16811.0,8.89764632]
[1672983902030,0.63081797,16812.0,16811.0,8.89764632]
[1672983902569,0.63081797,16812.0,16811.0,8.30279832]
[1672983902831,1.075541,16812.0,16811.0,8.30279832]
[1672983903888,0.80871051,16812.0,16811.0,7.589]
[1672983904906,1.0756826,16812.0,16811.0,7.589]
[1672983905185,0.80871051,16812.0,16811.0,7.589]
[1672983915155,0.80908454,16812.0,16811.0,7.589]
[1672983921181,0.80908454,16812.0,16811.0,7.58893219]
[1672983925693,0.95236747,16812.0,16811.0,7.58893219]
[1672983926490,0.95236747,16812.0,16811.0,0.089]
[1672983927216,0.95236747,16812.0,16811.0,0.589]
[1672983927482,0.95236747,16812.0,16811.0,0.089]
[1672983928724,0.59621945,16812.0,16811.0,0.089]
[1672983929711,0.63126694,16812.0,16811.0,1.14775358]
[1672983930422,0.63126694,16812.0,16811.0,8.64775358]
[1672983930889,0.63126694,16812.0,16811.0,8.14775358]
[1672983931132,1.07598997,16812.0,16811.0,8.14775358]
[1672983932113,0.63126694,16812.0,16811.0,8.14775358]
[1672983933409,1.07598997,16812.0,16811.0,0.64775358]
[1672983933680,0.80896194,16812.0,16811.0,0.64775358]
[1672983934413,0.80896194,16812.0,16811.0,1.14775358]
[1672983936367,0.95224761,16812.0,16811.0,1.14775358]
[1672983937329,0.80896194,16812.0,16811.0,1.14775358]
[1672983938399,0.80896194,16812.0,16811.0,9.24260158]
[1672983942412,0.80896194,16812.0,16811.0,9.24253864]
[1672983949101,1.07622903,16812.0,16811.0,9.24253864]
[1672983949624,0.80896194,16812.0,16811.0,9.24253864]
[1672983950601,1.07623532,16812.0,16811.0,9.24253864]
[1672983951091,0.63151229,16812.0,16811.0,9.24253864]
[1672983951574,0.63151229,16812.0,16811.0,9.83738664]
[1672983951813,0.18639886,16812.0,16811.0,10.74961217]
[1672983952310,0.18639886,16812.0,16811.0,3.42788838]
[1672983952558,0.00821349,16812.0,16811.0,3.42788838]
[1672983952802,0.00821349,16812.0,16811.0,10.56661325]
[1672983953533,0.00821349,16812.0,16811.0,10.38833704]
[1672983953772,0.00821349,16812.0,16811.0,2.88833704]
[1672983954280,0.00821349,16812.0,16811.0,10.38833704]
[1672983954516,0.00821349,16812.0,16811.0,10.56661325]